bitfinex/quotes_SOLUSD_20230110
["timestamp","ask_amount","ask_price","bid_price","bid_amount"]
[1673319025039,20.0,15.724,15.714,20.0]
[1673319025357,20.0,15.728,15.714,20.0]
[1673319025974,19.00061681,15.727,15.714,20.0]
[1673319026182,20.0,15.726,15.714,20.0]
[1673319026514,36.00061681,15.725,15.714,20.0]
[1673319026716,20.0,15.724,15.714,20.0]
[1673319027045,39.00061681,15.724,15.714,20.0]
[1673319027236,20.0,15.724,15.714,20.0]
[1673319027452,39.00061681,15.724,15.714,20.0]
[1673319027772,25.75,15.73,15.714,20.0]
[1673319027976,25.75,15.73,15.715,47.74]
[1673319028184,25.75,15.73,15.716,20.0]
[1673319028824,47.67,15.739,15.717,17.0]
[1673319029037,25.7,15.74,15.719,3.28728129]
[1673319029229,25.7,15.74,15.721,23.49362931]
[1673319029438,19.00061681,15.739,15.722,51.21362931]
[1673319029645,19.00061681,15.739,15.722,47.72]
[1673319029855,19.00061681,15.739,15.723,17.0]
[1673319030192,19.00061681,15.739,15.724,20.0]
[1673319030613,47.64,15.749,15.725,64.71]
[1673319030927,19.00061681,15.745,15.725,64.71]
[1673319031121,19.00061681,15.745,15.726,20.0]
[1673319031452,19.00061681,15.745,15.727,64.7]
[1673319031683,20.0,15.744,15.728,20.0]
[1673319031978,39.00061681,15.744,15.729,64.7]
[1673319032185,39.00061681,15.744,15.73,20.0]
[1673319034269,17.0,15.743,15.73,20.0]
[1673319034491,20.0,15.742,15.73,20.0]
[1673319034706,39.00061681,15.742,15.73,20.0]
[1673319034915,19.00061681,15.741,15.73,20.0]
[1673319036074,19.00061681,15.741,15.728,245.7203]
[1673319036294,110.34,15.74,15.726,20.0]
[1673319036613,19.00061681,15.739,15.726,20.0]
[1673319036816,37.0,15.738,15.726,20.0]
[1673319037012,19.00061681,15.739,15.726,20.0]
[1673319037357,19.00061681,15.738,15.726,20.0]
[1673319037869,36.91895251,15.745,15.727,17.0]
[1673319038065,47.64,15.749,15.727,17.0]
[1673319038066,20.0,15.744,15.728,20.0]
[1673319038277,385.61,15.74,15.715,100.80243165]
[1673319038483,385.61,15.74,15.713,5.7648714]
[1673319038484,20.0,15.738,15.719,20.0]
[1673319038702,67.67,15.737,15.72,118.8976]
[1673319038917,86.67061681,15.737,15.72,118.8976]
[1673319039132,36.00061681,15.736,15.72,118.8976]
[1673319039327,25.65,15.73,15.72,118.8976]
[1673319039532,17.0,15.729,15.72,118.8976]
[1673319039739,89.25190265,15.729,15.72,118.8976]
[1673319039960,19.00061681,15.728,15.72,118.8976]
[1673319040391,72.25190265,15.728,15.72,118.8976]
[1673319040602,124.52842425,15.728,15.72,118.8976]
[1673319040805,19.00061681,15.727,15.72,118.8976]
[1673319041019,19.00061681,15.727,15.715,100.80243165]
[1673319041216,90.81461917,15.726,15.715,100.80243165]
[1673319041431,90.81461917,15.726,15.714,103.39209356]
[1673319041636,19.00061681,15.725,15.714,103.39209356]
[1673319041841,10.49006176,15.724,15.715,20.0]
[1673319042058,73.81461917,15.726,15.715,20.0]
[1673319042275,53.81461917,15.725,15.715,20.0]
[1673319043129,20.0,15.724,15.715,20.0]
[1673319043318,20.0,15.724,15.713,25.7648714]
[1673319043653,25.73,15.72,15.713,5.7648714]
[1673319043972,19.00061681,15.719,15.713,5.7648714]
[1673319044283,17.0,15.718,15.713,5.7648714]
[1673319044996,53.81461917,15.719,15.713,5.7648714]
[1673319045208,70.81461917,15.718,15.713,5.7648714]
[1673319045433,70.81461917,15.718,15.688,125.7190714]
[1673319045434,5.7648714,15.712,15.692,104.03213938]
[1673319045644,128.55,15.71,15.692,104.03213938]
[1673319045854,51.51,15.71,15.692,151.84213938]
[1673319046069,64.57885307,15.709,15.695,106.17710943]
[1673319046280,83.57946988,15.709,15.694,106.96104664]
[1673319046490,158.988406,15.708,15.694,106.96104664]
[1673319046708,17.0,15.707,15.693,190.58145492]
[1673319046893,12.62111963,15.7,15.694,20.0]
[1673319047104,25.73,15.7,15.694,20.0]
[1673319047330,25.73,15.7,15.693,90.00189127]
[1673319048070,19.00061681,15.699,15.693,90.00189127]
[1673319048891,17.0,15.698,15.693,90.00189127]
[1673319049219,128.65,15.7,15.691,25.456256]
[1673319049220,25.98,15.7,15.691,25.456256]
[1673319049840,19.00061681,15.699,15.691,25.456256]
[1673319050157,40.0,15.698,15.688,5.7648714]
[1673319050365,47.8,15.697,15.688,5.7648714]
[1673319050588,20.0,15.696,15.688,5.7648714]
[1673319050789,84.8,15.695,15.688,5.7648714]
[1673319051001,20.0,15.693,15.688,5.7648714]
[1673319051214,20.0,15.691,15.688,5.7648714]
[1673319051419,17.0,15.69,15.688,5.7648714]
[1673319051629,51.14776813,15.69,15.688,5.7648714]
[1673319051831,53.14838494,15.689,15.688,5.7648714]
[1673319052042,87.38162016,15.689,15.688,5.7648714]
[1673319052247,19.00061681,15.689,15.688,5.7648714]
[1673319052672,20.0,15.692,15.688,5.7648714]
[1673319052888,20.0,15.693,15.688,5.7648714]
[1673319053096,20.0,15.697,15.688,5.7648714]
[1673319053307,128.72,15.7,15.688,5.7648714]
[1673319053308,20.0,15.698,15.688,5.7648714]
[1673319053526,5.30394461,15.68,15.677,47.86]
[1673319053740,5.30394461,15.68,15.674,20.0]
[1673319053948,5.30394461,15.68,15.674,19.5]
[1673319054353,5.30394461,15.68,15.673,20.0]
[1673319056684,30.85394461,15.68,15.67,20.0]
[1673319056892,36.00061681,15.679,15.668,20.0]
[1673319057303,66.85061681,15.678,15.664,121.4266714]
[1673319057632,25.73,15.67,15.664,5.7648714]
[1673319058046,19.00061681,15.669,15.664,5.7648714]
[1673319058241,25.73,15.67,15.664,5.2648714]
[1673319058452,19.00061681,15.674,15.664,5.2648714]
[1673319058659,20.0,15.673,15.664,5.2648714]
[1673319059084,20.0,15.678,15.664,5.2648714]
[1673319059308,25.52,15.67,15.664,5.2648714]
[1673319059717,19.00061681,15.669,15.664,5.2648714]
[1673319060666,20.0,15.678,15.664,5.2648714]
[1673319060883,19.00061681,15.676,15.664,5.2648714]
[1673319061101,20.0,15.675,15.664,5.2648714]
[1673319061309,25.49,15.67,15.664,5.2648714]
[1673319062146,47.88,15.669,15.664,5.2648714]
[1673319062573,19.00061681,15.668,15.664,5.2648714]
[1673319062792,25.81,15.67,15.664,5.2648714]
[1673319063417,44.81061681,15.67,15.664,5.2648714]
[1673319063632,42.19061681,15.67,15.664,5.2648714]
[1673319064378,23.19,15.67,15.664,5.2648714]
[1673319064572,20.0,15.675,15.664,5.2648714]
[1673319064781,28.57394461,15.68,15.664,5.2648714]
[1673319065103,5.30394461,15.68,15.665,47.89]
[1673319065424,5.30394461,15.68,15.666,35.70947085]
[1673319065640,5.30394461,15.68,15.667,47.89]
[1673319065823,5.30394461,15.68,15.669,20.0]
[1673319066035,5.30394461,15.68,15.671,3.09511373]
[1673319066264,5.30394461,15.68,15.67,64.88]
[1673319066471,47.8,15.695,15.672,38.14857765]
[1673319066681,23.22,15.7,15.674,3.46349541]
[1673319067000,67.79,15.699,15.675,47.86]
[1673319067187,19.00061681,15.693,15.674,20.0]
[1673319067402,46.5,15.69,15.671,20.0]
[1673319067738,20.0,15.685,15.671,20.0]
[1673319067950,23.09,15.68,15.669,20.0]
[1673319068139,23.09,15.68,15.666,20.0]
[1673319069000,17.0,15.679,15.666,20.0]
[1673319069185,17.0,15.679,15.657,170.90138447]
[1673319069186,67.85,15.678,15.657,170.90138447]
[1673319069396,17.0,15.677,15.664,5.2648714]
[1673319069620,67.86,15.676,15.664,5.2648714]
[1673319070026,19.00061681,15.677,15.664,5.2648714]
[1673319070243,47.85,15.679,15.664,5.2648714]
[1673319070460,23.18,15.68,15.664,5.2648714]
[1673319070975,23.18,15.68,15.665,47.89]
[1673319071185,23.18,15.68,15.666,20.0]
[1673319073199,14.18765949,15.686,15.667,47.89]
[1673319073393,14.18765949,15.686,15.668,20.0]
[1673319073598,20.0,15.685,15.668,20.0]
[1673319074972,20.0,15.685,15.67,20.0]
[1673319075183,20.0,15.685,15.671,17.0]
[1673319075399,20.0,15.685,15.67,67.88]
[1673319075720,20.0,15.685,15.67,20.0]
[1673319075910,20.0,15.685,15.669,47.88]
[1673319076125,19.00061681,15.684,15.668,20.0]
[1673319076345,23.02,15.68,15.668,20.0]
[1673319080228,67.83,15.685,15.668,20.0]
[1673319080439,20.0,15.685,15.668,20.0]
[1673319080670,47.84,15.684,15.668,20.0]
[1673319080991,20.0,15.683,15.668,20.0]
[1673319081827,20.0,15.685,15.669,47.88]
[1673319082148,20.0,15.685,15.669,165.85]
[1673319082352,20.0,15.685,15.67,17.0]
[1673319082674,20.0,15.685,15.67,20.0]
[1673319083284,14.18765949,15.686,15.671,17.0]
[1673319083494,14.18765949,15.686,15.672,3.40655936]
[1673319083700,14.18765949,15.686,15.674,3.62690204]
[1673319083938,14.18765949,15.686,15.675,67.86]
[1673319084126,14.18765949,15.686,15.676,3.62690204]
[1673319084347,14.18765949,15.686,15.672,49.54686365]
[1673319084674,86.83061681,15.685,15.669,117.97]
[1673319084877,14.18765949,15.686,15.671,18.40550451]
[1673319085087,20.0,15.685,15.669,117.97]
[1673319085492,20.0,15.685,15.67,20.0]
[1673319085702,14.18765949,15.686,15.671,47.88]
[1673319085930,14.18765949,15.686,15.672,20.0]
[1673319086139,14.18765949,15.686,15.673,47.87]
[1673319086350,20.0,15.685,15.672,20.0]
[1673319086671,14.18765949,15.686,15.672,20.0]
[1673319086856,14.18765949,15.686,15.673,47.87]
[1673319087063,14.18765949,15.686,15.674,20.0]
[1673319087385,14.18765949,15.686,15.675,17.0]
[1673319087720,14.18765949,15.686,15.675,35.40550451]
[1673319087905,14.18765949,15.686,15.677,20.0]
[1673319088116,14.18765949,15.686,15.678,17.0]
[1673319088327,14.18765949,15.686,15.679,47.85]
[1673319088565,5.949e-05,15.686,15.681,20.0]
[1673319088870,5.949e-05,15.686,15.682,17.0]
[1673319089274,23.15,15.7,15.682,17.0]
[1673319089490,20.0,15.708,15.684,20.0]
[1673319089692,67.77,15.707,15.685,64.83]
[1673319090028,67.77,15.707,15.685,83.23550451]
[1673319090227,20.0,15.707,15.686,20.0]
[1673319090434,20.0,15.707,15.687,64.83]
[1673319090646,20.0,15.708,15.688,139.9977]
[1673319090858,19.5,15.708,15.69,20.0]
[1673319091069,19.5,15.708,15.691,16.5]
[1673319091495,19.5,15.708,15.691,64.31]
[1673319091696,23.22,15.71,15.691,16.5]
[1673319092139,20.0,15.709,15.691,16.5]
[1673319092347,39.00061681,15.709,15.69,67.82]
[1673319092562,86.76061681,15.709,15.69,20.0]
[1673319092755,67.76,15.709,15.69,20.0]
[1673319093500,116.11,15.71,15.69,20.0]
[1673319093708,47.74,15.714,15.691,64.81]
[1673319094031,19.00061681,15.718,15.691,83.21550451]
[1673319094237,67.73,15.717,15.692,18.40550451]
[1673319094457,20.0,15.717,15.694,20.0]
[1673319094647,20.0,15.718,15.695,64.8]
[1673319094863,19.00061681,15.716,15.695,47.8]
[1673319095194,23.19,15.71,15.69,67.82]
[1673319095388,67.76,15.709,15.69,67.82]
[1673319095600,20.0,15.709,15.69,67.82]
[1673319096010,66.76061681,15.708,15.69,67.82]
[1673319096221,20.0,15.707,15.69,67.82]
[1673319096536,20.0,15.718,15.692,20.0]
[1673319096745,20.0,15.717,15.693,64.81]
[1673319096966,19.00061681,15.713,15.694,20.0]
[1673319097176,20.0,15.712,15.695,64.8]
[1673319097483,19.00061681,15.711,15.695,64.8]
[1673319098023,20.0,15.712,15.695,64.8]
[1673319098219,19.00061681,15.712,15.695,64.8]
[1673319098428,19.00061681,15.712,15.696,37.87549098]
[1673319098638,47.73,15.719,15.698,20.0]
[1673319098858,23.18,15.72,15.699,84.79]
[1673319098859,19.00061681,15.716,15.699,84.79]
[1673319099183,19.00061681,15.716,15.7,20.0]
[1673319099387,19.00061681,15.716,15.702,20.0]
[1673319099581,19.00061681,15.716,15.701,64.78]
[1673319099789,19.00061681,15.716,15.701,17.0]
[1673319100232,20.0,15.715,15.701,17.0]
[1673319100539,20.0,15.715,15.702,20.0]
[1673319100757,47.7,15.727,15.703,64.78]
[1673319100952,30.3333252,15.728,15.703,82.67486973]
[1673319101161,19.00061681,15.725,15.704,20.0]
[1673319101491,20.0,15.724,15.706,20.0]
[1673319101688,20.0,15.724,15.708,20.0]
[1673319101900,20.0,15.724,15.709,64.76]
[1673319102104,20.0,15.727,15.71,20.0]
[1673319102314,20.0,15.727,15.711,64.75]
[1673319102752,20.0,15.727,15.712,20.0]
[1673319102957,20.0,15.727,15.713,17.0]
[1673319104730,30.3333252,15.728,15.713,17.0]
[1673319105056,30.3333252,15.728,15.715,20.0]
[1673319105469,49.33394201,15.728,15.716,17.0]
[1673319105683,49.33394201,15.728,15.715,20.0]
[1673319105896,30.3333252,15.728,15.716,17.0]
[1673319106324,20.0,15.727,15.712,136.7485]
[1673319106536,39.00061681,15.727,15.712,136.7485]
[1673319107060,30.3333252,15.728,15.712,136.7485]
[1673319107252,19.00061681,15.727,15.712,136.7485]
[1673319107463,19.00061681,15.727,15.712,116.7485]
[1673319107675,19.00061681,15.722,15.707,133.2774]
[1673319107891,30.3333252,15.728,15.713,52.22914445]
[1673319108112,30.3333252,15.728,15.714,47.74]
[1673319108326,30.3333252,15.728,15.715,20.0]
[1673319108542,30.3333252,15.728,15.716,47.74]
[1673319108731,30.3333252,15.728,15.716,65.63486973]
[1673319108943,0.0033252,15.728,15.718,20.0]
[1673319109153,0.0033252,15.728,15.72,20.0]
[1673319109364,23.04,15.74,15.721,65.5652929]
[1673319109586,20.0,15.739,15.721,65.5652929]
[1673319109995,47.67,15.738,15.721,0.8452929]
[1673319110208,20.0,15.73,15.716,115.0979]
[1673319110425,47.67,15.738,15.716,115.0979]
[1673319110635,20.0,15.73,15.716,115.0979]
[1673319111167,43.19,15.73,15.716,115.0979]
[1673319111376,64.7,15.729,15.705,67.77]
[1673319111567,20.0,15.728,15.709,109.8913]
[1673319111777,47.7,15.727,15.709,109.8913]
[1673319112007,64.7,15.727,15.709,109.8913]
[1673319112220,20.0,15.725,15.709,109.8913]
[1673319112428,47.71,15.724,15.709,109.8913]
[1673319112631,20.0,15.723,15.709,109.8913]
[1673319112841,47.72,15.722,15.709,109.8913]
[1673319113164,20.0,15.723,15.709,109.8913]
[1673319113358,20.0,15.728,15.709,109.8913]
[1673319113789,20.0,15.728,15.71,20.0]
[1673319113980,47.68,15.736,15.71,86.70531555]
[1673319114193,47.67,15.738,15.712,20.0]
[1673319114510,47.67,15.738,15.713,64.75]
[1673319114736,47.67,15.738,15.713,83.69531555]
[1673319114946,47.67,15.739,15.714,20.0]
[1673319115262,47.67,15.739,15.716,20.0]
[1673319115582,47.67,15.739,15.717,109.3174732]
[1673319115782,23.18,15.74,15.718,37.0]
[1673319115999,23.18,15.74,15.72,20.0]
[1673319116185,23.18,15.74,15.721,64.72]
[1673319116528,47.67,15.739,15.721,17.0]
[1673319117870,47.67,15.739,15.722,1.2937456]
[1673319118715,23.18,15.74,15.722,1.2937456]
[1673319118925,47.67,15.739,15.722,1.2937456]
[1673319119680,19.00061681,15.737,15.715,20.0]
[1673319119873,47.68,15.736,15.715,20.0]
[1673319120083,47.68,15.736,15.718,20.0]
[1673319120607,47.67,15.739,15.718,20.0]
[1673319120821,47.67,15.739,15.718,67.73]
[1673319121031,47.67,15.739,15.718,86.67531555]
[1673319121236,47.66,15.743,15.719,0.79227485]
[1673319121468,47.66,15.743,15.721,20.0]
[1673319121671,47.66,15.743,15.722,64.72]
[1673319121888,20.0,15.742,15.723,20.0]
[1673319122101,47.66,15.741,15.724,17.0]
[1673319122416,47.66,15.743,15.724,17.0]
[1673319122608,20.0,15.742,15.724,17.0]
[1673319122814,23.12,15.74,15.724,17.0]
[1673319123031,47.67,15.739,15.723,20.0]
[1673319123570,47.66,15.743,15.723,20.0]
[1673319123775,47.64,15.749,15.724,68.39750028]
[1673319124089,47.64,15.749,15.726,1.86300829]
[1673319124311,47.64,15.749,15.729,20.0]
[1673319124497,47.64,15.749,15.73,67.22201267]
[1673319124710,63.67,15.753,15.73,86.16732822]
[1673319125135,63.67,15.753,15.732,20.0]
[1673319125345,63.67,15.753,15.733,64.69]
[1673319125673,63.67,15.758,15.734,38.94531555]
[1673319125987,63.67,15.756,15.736,20.0]
[1673319126192,63.67,15.754,15.737,17.0]
[1673319126407,63.67,15.754,15.738,20.0]
[1673319127147,63.67,15.758,15.738,20.0]
[1673319127459,63.67,15.756,15.738,20.0]
[1673319127656,63.67,15.754,15.738,20.0]
[1673319127865,63.67,15.754,15.739,17.0]
[1673319128089,63.67,15.754,15.74,20.0]
[1673319128406,0.0048714,15.746,15.742,2.23191591]
[1673319128596,0.0048714,15.746,15.742,22.23191591]
[1673319128802,0.0048714,15.746,15.744,2.23191591]
[1673319129462,0.0048714,15.746,15.743,2.23191591]
[1673319130933,0.0048714,15.746,15.743,19.23191591]
[1673319131148,0.0048714,15.746,15.743,17.0]
[1673319131545,0.0048714,15.746,15.744,0.86032023]
[1673319131755,47.6,15.76,15.745,20.0]
[1673319131966,280.60781723,15.761,15.745,135.4032]
[1673319132507,280.60781723,15.761,15.746,17.0]
[1673319132715,47.59,15.766,15.746,17.0]
[1673319133039,47.58,15.769,15.748,20.0]
[1673319133349,47.58,15.769,15.749,37.0]
[1673319134093,47.58,15.769,15.75,20.0]
[1673319134297,47.58,15.769,15.751,17.0]
[1673319134624,47.58,15.769,15.752,20.0]
[1673319134829,47.58,15.769,15.753,17.0]
[1673319136192,5.7648714,15.77,15.753,125.1196]
[1673319136618,5.7648714,15.77,15.754,20.0]
[1673319136928,5.7648714,15.77,15.755,17.0]
[1673319137238,5.7648714,15.77,15.756,20.0]
[1673319137450,5.7648714,15.77,15.756,10.36]
[1673319137636,5.7648714,15.77,15.754,3.72]
[1673319137847,47.58,15.769,15.753,85.1996]
[1673319138178,47.58,15.769,15.754,20.0]
[1673319138802,5.7648714,15.77,15.754,20.0]
[1673319139650,5.7648714,15.77,15.756,20.0]
[1673319139865,5.7648714,15.77,15.757,17.0]
[1673319140185,5.7648714,15.77,15.758,20.0]
[1673319140395,5.7648714,15.77,15.759,17.0]
[1673319140917,5.7648714,15.77,15.761,20.0]
[1673319141133,5.7648714,15.77,15.762,17.0]
[1673319142186,5.7648714,15.77,15.761,20.0]
[1673319142399,5.7648714,15.77,15.762,17.0]
[1673319144181,5.7648714,15.77,15.761,20.0]
[1673319146703,5.7648714,15.77,15.76,20.0]
[1673319147636,5.7648714,15.77,15.756,20.0]
[1673319147637,84.58,15.769,15.756,20.0]
[1673319147851,84.58,15.769,15.75,20.0]
[1673319147852,137.16269318,15.769,15.75,20.0]
[1673319148075,137.16269318,15.769,15.744,20.0]
[1673319148076,19.7087349,15.768,15.744,20.0]
[1673319148266,244.72996,15.767,15.711,166.4088]
[1673319148480,185.4,15.765,15.713,30.0]
[1673319148686,23.19,15.74,15.714,47.74]
[1673319149003,47.67,15.739,15.712,47.75]
[1673319149214,19.00061681,15.746,15.712,47.75]
[1673319149435,20.0,15.745,15.713,20.0]
[1673319149626,20.0,15.745,15.714,47.74]
[1673319149841,19.00061681,15.744,15.715,20.0]
[1673319150048,67.66,15.743,15.716,47.74]
[1673319150274,47.65,15.744,15.717,20.0]
[1673319150491,50.84072768,15.749,15.718,47.73]
[1673319150678,115.76,15.75,15.72,20.0]
[1673319150887,20.0,15.767,15.72,20.0]
[1673319150888,20.0,15.758,15.721,364.8913]
[1673319151228,20.0,15.756,15.723,20.0]
[1673319151539,67.62,15.755,15.724,84.71]
[1673319151966,67.62,15.755,15.725,205.4]
[1673319152183,67.62,15.755,15.726,270.11]
[1673319152377,19.00061681,15.754,15.726,84.71]
[1673319152589,23.19,15.75,15.726,84.71]
[1673319152921,66.64061681,15.749,15.726,47.71]
[1673319153238,20.0,15.748,15.726,47.71]
[1673319153451,47.64,15.747,15.726,47.71]
[1673319153664,20.0,15.746,15.726,47.71]
[1673319154167,19.00061681,15.745,15.727,17.0]
[1673319154375,20.0,15.744,15.727,17.0]
[1673319155333,47.61,15.757,15.728,47.7]
[1673319155657,20.0,15.756,15.73,20.0]
[1673319155967,19.00061681,15.751,15.732,20.0]
[1673319156162,43.19,15.75,15.733,47.69]
[1673319156376,90.82,15.75,15.731,118.9785]
[1673319156690,90.82,15.75,15.732,20.0]
[1673319156902,19.00061681,15.749,15.732,20.0]
[1673319157115,47.64,15.748,15.732,20.0]
[1673319157532,66.64061681,15.748,15.732,20.0]
[1673319157747,19.00061681,15.748,15.733,17.0]
[1673319157961,47.64,15.749,15.733,17.0]
[1673319158791,20.0,15.75,15.733,17.0]
[1673319159360,20.0,15.75,15.735,20.0]
[1673319159545,67.62,15.755,15.736,64.68]
[1673319159742,67.62,15.755,15.736,135.5131]
[1673319160280,86.62061681,15.755,15.736,135.5131]
[1673319160700,86.62061681,15.755,15.737,20.0]
[1673319160897,39.00061681,15.755,15.738,17.0]
[1673319161319,47.62,15.754,15.736,118.5131]
[1673319161544,40.0,15.753,15.736,118.5131]
[1673319161860,47.63,15.752,15.736,118.5131]
[1673319162072,20.0,15.751,15.736,118.5131]
[1673319162292,47.63,15.75,15.736,118.5131]
[1673319162690,66.63061681,15.75,15.736,118.5131]
[1673319163641,20.0,15.749,15.732,20.0]
[1673319163951,83.64061681,15.748,15.726,109.9903]
[1673319164165,20.0,15.747,15.726,109.9903]
[1673319164375,20.0,15.747,15.721,67.72]
[1673319164376,23.02,15.74,15.721,20.0]
[1673319164586,67.67,15.739,15.721,20.0]
[1673319164914,86.67061681,15.739,15.718,47.73]
[1673319165108,19.00061681,15.738,15.716,157.7303]
[1673319165435,67.67,15.737,15.716,157.7303]
[1673319165640,47.67,15.737,15.721,17.0]
[1673319165851,47.65,15.745,15.722,20.0]
[1673319166055,20.0,15.744,15.723,64.72]
[1673319166272,47.66,15.743,15.724,20.0]
[1673319166470,20.0,15.742,15.725,17.0]
[1673319166680,20.0,15.744,15.727,20.0]
[1673319166904,20.0,15.744,15.728,17.0]
[1673319167120,19.00061681,15.744,15.728,17.0]
[1673319167314,20.0,15.743,15.728,17.0]
[1673319169117,39.00061681,15.746,15.728,17.0]
[1673319169515,19.00061681,15.745,15.728,17.0]
[1673319169727,20.0,15.744,15.728,17.0]
[1673319170800,20.0,15.748,15.728,17.0]
[1673319170986,47.64,15.747,15.728,174.2942]
[1673319171326,20.0,15.746,15.729,20.0]
[1673319171509,20.0,15.746,15.73,17.0]
[1673319171723,20.0,15.748,15.73,17.0]
[1673319172056,20.0,15.748,15.731,18.94531555]
[1673319172252,20.0,15.748,15.732,17.0]
[1673319172579,20.0,15.748,15.73,17.0]
[1673319172789,47.64,15.749,15.73,17.0]
[1673319173003,23.08,15.75,15.73,83.64531555]
[1673319173316,47.64,15.749,15.731,20.0]
[1673319173525,47.64,15.749,15.73,83.64531555]
[1673319173526,47.64,15.749,15.732,17.0]
[1673319173716,20.0,15.748,15.73,17.0]
[1673319173933,47.64,15.747,15.73,17.0]
[1673319174147,20.0,15.746,15.73,17.0]
[1673319174696,47.65,15.745,15.73,17.0]
[1673319174999,20.0,15.744,15.726,62.18651555]
[1673319175626,20.0,15.748,15.726,62.18651555]
[1673319175833,20.0,15.746,15.725,158.3141]
[1673319176029,47.65,15.745,15.725,177.25941555]
[1673319176239,20.0,15.744,15.725,177.25941555]
[1673319176467,20.0,15.744,15.726,20.0]
[1673319176679,20.0,15.744,15.727,47.7]
[1673319176994,20.0,15.747,15.728,20.0]
[1673319177181,47.65,15.746,15.729,17.0]
[1673319177396,20.0,15.745,15.729,17.0]
[1673319177816,20.0,15.745,15.73,47.7]
[1673319178037,20.0,15.748,15.73,47.7]
[1673319178248,20.0,15.748,15.731,17.0]
[1673319179629,47.64,15.749,15.731,35.69819586]
[1673319179815,47.62,15.756,15.732,47.69]
[1673319180150,20.0,15.755,15.733,148.60419586]
[1673319180362,47.62,15.754,15.734,47.68]
[1673319180553,20.0,15.753,15.735,37.0]
[1673319180771,20.0,15.755,15.737,20.0]
[1673319181090,47.62,15.754,15.738,17.0]
[1673319181307,20.0,15.753,15.738,17.0]
[1673319181616,20.0,15.753,15.737,17.0]
[1673319181935,20.0,15.754,15.737,64.67]
[1673319182150,20.0,15.756,15.738,20.0]
[1673319182338,47.62,15.755,15.739,17.0]
[1673319182774,43.51524236,15.761,15.74,251.76819586]
[1673319182965,47.58,15.769,15.742,185.4]
[1673319183181,20.0,15.768,15.743,48.5839892]
[1673319183385,47.58,15.767,15.744,17.0]
[1673319183619,20.0,15.766,15.745,67.65]
[1673319184143,47.58,15.769,15.747,20.0]
[1673319184335,5.7648714,15.77,15.748,84.64]
[1673319184548,47.58,15.769,15.749,131.81]
[1673319184859,5.7648714,15.77,15.75,84.63]
[1673319185072,5.7648714,15.77,15.75,128.72109396]
[1673319185284,5.7648714,15.77,15.751,20.0]
[1673319185495,5.7648714,15.77,15.752,47.63]
[1673319185704,5.7648714,15.77,15.753,17.0]
[1673319185905,5.7648714,15.77,15.754,47.62]
[1673319186115,5.7648714,15.77,15.755,17.0]
[1673319186454,5.7648714,15.77,15.756,67.62]
[1673319186764,5.7648714,15.77,15.758,20.0]
[1673319186976,5.7648714,15.77,15.758,67.61]